Department,Entity, Transaction Date, Expense Type, Expense Area, Supplier Name,Transaction number, Amount, Invoice Description
DFID,CSC,03/04/2018,Bank Charges,Award Costs,MasterCard Prepaid Management Services Ltd,PIN033144,206.18,
BEIS,CSC,03/04/2018,Scholar Stipend,Award Costs,Scholar,PIN033144,6434.01,
BEIS,CSC,03/04/2018,Immigration Health Surcharge,Award Costs,Scholar,PIN033144,400,
BEIS,CSC,03/04/2018,Visa Costs,Award Costs,Scholar,PIN033144,235,
BEIS,CSC,03/04/2018,Scholar Stipend,Award Costs,Scholar,PIN033144,5077.75,
BEIS,CSC,03/04/2018,Immigration Health Surcharge,Award Costs,Scholar,PIN033144,400,
BEIS,CSC,03/04/2018,Visa Costs,Award Costs,Scholar,PIN033144,235,
DFID,CSC,03/04/2018,Scholar Stipend,Award Costs,Scholar,PIN033144,1306,
DFID,CSC,03/04/2018,Scholar Stipend,Award Costs,Scholar,PIN033144,2019,
DFID,CSC,03/04/2018,Scholar Stipend,Award Costs,Scholar,PIN033144,2019,
DFID,CSC,03/04/2018,Scholar Stipend,Award Costs,Scholar,PIN033144,2019,
DFID,CSC,03/04/2018,Scholar Stipend,Award Costs,Scholar,PIN033144,397.56,
BEIS,CSC,03/04/2018,Visa Costs,Award Costs,Scholar,PIN033144,75,
DFID,CSC,05/04/2018,Bank Charges,Award Costs,MasterCard Prepaid Management Services Ltd,PIN033145,58.2,
BEIS,CSC,05/04/2018,Scholar Stipend,Award Costs,Scholar,PIN033145,5184.65,
BEIS,CSC,05/04/2018,Immigration Health Surcharge,Award Costs,Scholar,PIN033145,400,
BEIS,CSC,05/04/2018,Visa Costs,Award Costs,Scholar,PIN033145,235,
DFID,CSC,05/04/2018,Scholar Stipend,Award Costs,Scholar,PIN033145,-90,
DFID,CSC,05/04/2018,Bank Charges,Award Costs,MasterCard Prepaid Management Services Ltd,PIN033146,55.52,
BEIS,CSC,05/04/2018,Scholar Stipend,Award Costs,Scholar,PIN033146,4917.4,
BEIS,CSC,05/04/2018,Immigration Health Surcharge,Award Costs,Scholar,PIN033146,400,
BEIS,CSC,05/04/2018,Visa Costs,Award Costs,Scholar,PIN033146,235,
DFID,CSC,06/04/2018,Miscellaneous,Admin Costs,Public Chairs Forum,PIN032355,1500,
DFID,CSC,06/04/2018,Scholar Allowances,Award Costs,Scholar,PIN032359,600,
DFID,CSC,06/04/2018,Scholar Allowances,Award Costs,Scholar,PIN032361,600,
DFID,CSC,06/04/2018,Scholar Engagement,Programme Costs,Cumberland Lodge Enterprises Limited,PIN032365,5619.55,
DFID,CSC,06/04/2018,Scholar Engagement,Programme Costs,Cumberland Lodge Enterprises Limited,PIN032365,5619.55,
DFID,CSC,06/04/2018,Alumni Engagement,Programme Costs,The British Council,PIN032369,232.88,
DFID,CSC,06/04/2018,Alumni Engagement,Programme Costs,The British Council,PIN032369,5031.41,
DFID,CSC,12/04/2018,Scholar Allowances,Award Costs,Scholar,PIN032396,341,
DFID,CSC,12/04/2018,Scholar Allowances,Award Costs,Scholar,PIN032396,229,
DFID,CSC,12/04/2018,Scholar Stipend,Award Costs,Scholar,PIN032396,1065,
DFID,CSC,13/04/2018,Award Support Costs,Award Costs,Aberdeen City Council,PIN032372,619.2,
DFID,CSC,13/04/2018,Award Support Costs,Award Costs,Aberdeen City Council,PIN032372,800,
DFID,CSC,13/04/2018,Scholar Stipend,Award Costs,Scholar,PIN032373,1022.5,
DFID,CSC,13/04/2018,Scholar Stipend,Award Costs,Scholar,PIN032374,1597.5,
DFID,CSC,13/04/2018,Scholar Allowances,Award Costs,Scholar,PIN032376,458,
DFID,CSC,13/04/2018,Scholar Stipend,Award Costs,Scholar,PIN032376,2130,
DFID,CSC,13/04/2018,Scholar Allowances,Award Costs,Scholar,PIN032377,600,
DFID,CSC,13/04/2018,Scholar Stipend,Award Costs,Scholar,PIN032378,2612,
DFID,CSC,13/04/2018,Scholar Allowances,Award Costs,Scholar,PIN032379,600,
DFID,CSC,13/04/2018,Scholar Allowances,Award Costs,Scholar,PIN032380,600,
DFID,CSC,13/04/2018,Scholar Stipend,Award Costs,Scholar,PIN032381,3195,
DFID,CSC,13/04/2018,Scholar Stipend,Award Costs,Scholar,PIN032382,3195,
DFID,CSC,13/04/2018,Scholar Allowances,Award Costs,Scholar,PIN032383,600,
DFID,CSC,13/04/2018,Award Support Costs,Award Costs,Kings College London,PIN032389,1400,
DFID,CSC,13/04/2018,Tuition Fee,Award Costs,Lady Margaret Hall,PIN032390,22500,
DFID,CSC,13/04/2018,Tuition Fee,Award Costs,London School of Economics,PIN032391,16089.6,
DFID,CSC,13/04/2018,Scholar Stipend,Award Costs,Scholar,PIN032393,1065,
DFID,CSC,13/04/2018,Tuition Fee,Award Costs,University of Dundee,PIN032395,7765.05,
DFID,CSC,13/04/2018,Tuition Fee,Award Costs,University of Dundee,PIN032395,31881.65,Tuition fees for 10 scholars
DFID,CSC,20/04/2018,Scholar Stipend,Award Costs,Scholar,PIN032397,532.5,
DFID,CSC,20/04/2018,Scholar Allowances,Award Costs,Scholar,PIN032401,600,
DFID,CSC,20/04/2018,Scholar Allowances,Award Costs,Scholar,PIN032405,600,
DFID,CSC,20/04/2018,Scholar Allowances,Award Costs,Scholar,PIN032410,600,
DFID,CSC,27/04/2018,Scholar Stipend,Award Costs,Scholar,PIN032412,2130,
DFID,CSC,27/04/2018,Scholar Stipend,Award Costs,Scholar,PIN032413,2612,
DFID,CSC,27/04/2018,Scholar Stipend,Award Costs,Scholar,PIN032414,2130,
DFID,CSC,27/04/2018,Scholar Stipend,Award Costs,Scholar,PIN032415,2130,
DFID,CSC,27/04/2018,Scholar Stipend,Award Costs,Scholar,PIN032416,2130,
DFID,CSC,27/04/2018,Scholar Stipend,Award Costs,Scholar,PIN032417,2130,
DFID,CSC,27/04/2018,Scholar Stipend,Award Costs,Scholar,PIN032418,2130,
DFID,CSC,27/04/2018,Scholar Stipend,Award Costs,Scholar,PIN032419,2130,
DFID,CSC,27/04/2018,Scholar Stipend,Award Costs,Scholar,PIN032421,2612,
DFID,CSC,27/04/2018,Scholar Stipend,Award Costs,Scholar,PIN032422,1065,
DFID,CSC,27/04/2018,Scholar Stipend,Award Costs,Scholar,PIN032423,2130,
DFID,CSC,27/04/2018,Scholar Stipend,Award Costs,Scholar,PIN032424,1065,
DFID,CSC,27/04/2018,Scholar Stipend,Award Costs,Scholar,PIN032426,1065,
DFID,CSC,27/04/2018,Scholar Stipend,Award Costs,Scholar,PIN032427,2612,
DFID,CSC,27/04/2018,Scholar Stipend,Award Costs,Scholar,PIN032428,2130,
DFID,CSC,27/04/2018,Scholar Stipend,Award Costs,Scholar,PIN032429,2612,
DFID,CSC,27/04/2018,Scholar Stipend,Award Costs,Scholar,PIN032430,2130,
DFID,CSC,27/04/2018,Scholar Stipend,Award Costs,Scholar,PIN032431,2130,
DFID,CSC,27/04/2018,Scholar Stipend,Award Costs,Scholar,PIN032432,2130,
DFID,CSC,27/04/2018,Scholar Stipend,Award Costs,Scholar,PIN032433,2612,
DFID,CSC,27/04/2018,Scholar Stipend,Award Costs,Scholar,PIN032434,2612,
DFID,CSC,27/04/2018,Scholar Stipend,Award Costs,Scholar,PIN032435,2130,
DFID,CSC,27/04/2018,Scholar Stipend,Award Costs,Scholar,PIN032436,2130,
DFID,CSC,27/04/2018,Scholar Stipend,Award Costs,Scholar,PIN032437,2612,
DFID,CSC,27/04/2018,Scholar Stipend,Award Costs,Scholar,PIN032438,2130,
DFID,CSC,27/04/2018,Scholar Stipend,Award Costs,Scholar,PIN032439,2612,
DFID,CSC,27/04/2018,Scholar Stipend,Award Costs,Scholar,PIN032440,2130,
DFID,CSC,27/04/2018,Scholar Stipend,Award Costs,Scholar,PIN032441,2130,
DFID,CSC,27/04/2018,Scholar Stipend,Award Costs,Scholar,PIN032442,2130,
DFID,CSC,27/04/2018,Scholar Stipend,Award Costs,Scholar,PIN032443,2612,
DFID,CSC,27/04/2018,Scholar Stipend,Award Costs,Scholar,PIN032444,2130,
DFID,CSC,27/04/2018,Scholar Stipend,Award Costs,Scholar,PIN032445,2130,
DFID,CSC,27/04/2018,Scholar Stipend,Award Costs,Scholar,PIN032446,2612,
DFID,CSC,27/04/2018,Scholar Stipend,Award Costs,Scholar,PIN032447,2130,
DFID,CSC,27/04/2018,Scholar Stipend,Award Costs,Scholar,PIN032448,962.74,
DFID,CSC,27/04/2018,Scholar Stipend,Award Costs,Scholar,PIN032449,2130,
DFID,CSC,27/04/2018,Scholar Stipend,Award Costs,Scholar,PIN032450,2612,
DFID,CSC,27/04/2018,Scholar Stipend,Award Costs,Scholar,PIN032451,2130,
DFID,CSC,27/04/2018,Scholar Stipend,Award Costs,Scholar,PIN032452,2612,
DFID,CSC,27/04/2018,Scholar Stipend,Award Costs,Scholar,PIN032453,2130,
DFID,CSC,27/04/2018,Scholar Stipend,Award Costs,Scholar,PIN032454,2130,
DFID,CSC,27/04/2018,Scholar Stipend,Award Costs,Scholar,PIN032455,2130,
DFID,CSC,27/04/2018,Scholar Stipend,Award Costs,Scholar,PIN032456,2130,
DFID,CSC,27/04/2018,Scholar Stipend,Award Costs,Scholar,PIN032457,2130,
DFID,CSC,27/04/2018,Scholar Stipend,Award Costs,Scholar,PIN032458,2130,
DFID,CSC,27/04/2018,Scholar Stipend,Award Costs,Scholar,PIN032459,2130,
DFID,CSC,27/04/2018,Scholar Stipend,Award Costs,Scholar,PIN032460,2130,
DFID,CSC,27/04/2018,Scholar Stipend,Award Costs,Scholar,PIN032461,2130,
DFID,CSC,27/04/2018,Scholar Stipend,Award Costs,Scholar,PIN032462,2612,
DFID,CSC,27/04/2018,Scholar Stipend,Award Costs,Scholar,PIN032463,2612,
DFID,CSC,27/04/2018,Scholar Stipend,Award Costs,Scholar,PIN032464,2130,
DFID,CSC,27/04/2018,Scholar Stipend,Award Costs,Scholar,PIN032465,2612,
DFID,CSC,27/04/2018,Scholar Stipend,Award Costs,Scholar,PIN032466,2130,
DFID,CSC,27/04/2018,Scholar Stipend,Award Costs,Scholar,PIN032467,2130,
DFID,CSC,27/04/2018,Scholar Stipend,Award Costs,Scholar,PIN032468,2130,
DFID,CSC,27/04/2018,Scholar Stipend,Award Costs,Scholar,PIN032469,2130,
DFID,CSC,27/04/2018,Scholar Stipend,Award Costs,Scholar,PIN032470,2130,
DFID,CSC,27/04/2018,Scholar Stipend,Award Costs,Scholar,PIN032471,2612,
DFID,CSC,27/04/2018,Scholar Stipend,Award Costs,Scholar,PIN032472,2130,
DFID,CSC,27/04/2018,Scholar Stipend,Award Costs,Scholar,PIN032473,2130,
DFID,CSC,27/04/2018,Scholar Stipend,Award Costs,Scholar,PIN032474,2130,
DFID,CSC,27/04/2018,Scholar Stipend,Award Costs,Scholar,PIN032475,2612,
DFID,CSC,27/04/2018,Scholar Stipend,Award Costs,Scholar,PIN032476,2612,
DFID,CSC,27/04/2018,Scholar Stipend,Award Costs,Scholar,PIN032477,2612,
DFID,CSC,27/04/2018,Scholar Stipend,Award Costs,Scholar,PIN032478,2612,
DFID,CSC,27/04/2018,Scholar Stipend,Award Costs,Scholar,PIN032479,2612,
DFID,CSC,27/04/2018,Scholar Stipend,Award Costs,Scholar,PIN032480,2130,
DFID,CSC,27/04/2018,Scholar Stipend,Award Costs,Scholar,PIN032481,2130,
DFID,CSC,27/04/2018,Scholar Stipend,Award Costs,Scholar,PIN032482,2130,
DFID,CSC,27/04/2018,Scholar Stipend,Award Costs,Scholar,PIN032483,2130,
DFID,CSC,27/04/2018,Scholar Stipend,Award Costs,Scholar,PIN032484,2130,
DFID,CSC,27/04/2018,Scholar Stipend,Award Costs,Scholar,PIN032485,532.5,
DFID,CSC,27/04/2018,Scholar Stipend,Award Costs,Scholar,PIN032486,1065,
DFID,CSC,27/04/2018,Scholar Stipend,Award Costs,Scholar,PIN032487,2130,
DFID,CSC,27/04/2018,Scholar Stipend,Award Costs,Scholar,PIN032488,2130,
DFID,CSC,27/04/2018,Scholar Stipend,Award Costs,Scholar,PIN032489,2130,
DFID,CSC,27/04/2018,Scholar Stipend,Award Costs,Scholar,PIN032490,2130,
DFID,CSC,27/04/2018,Scholar Stipend,Award Costs,Scholar,PIN032491,2130,
DFID,CSC,27/04/2018,Scholar Stipend,Award Costs,Scholar,PIN032492,2130,
DFID,CSC,27/04/2018,Scholar Stipend,Award Costs,Scholar,PIN032493,2130,
DFID,CSC,27/04/2018,Scholar Stipend,Award Costs,Scholar,PIN032494,2612,
DFID,CSC,27/04/2018,Scholar Stipend,Award Costs,Scholar,PIN032495,2130,
DFID,CSC,27/04/2018,Scholar Stipend,Award Costs,Scholar,PIN032496,2130,
DFID,CSC,27/04/2018,Scholar Stipend,Award Costs,Scholar,PIN032497,2130,
DFID,CSC,27/04/2018,Scholar Stipend,Award Costs,Scholar,PIN032498,2130,
DFID,CSC,27/04/2018,Scholar Stipend,Award Costs,Scholar,PIN032499,2130,
DFID,CSC,27/04/2018,Scholar Stipend,Award Costs,Scholar,PIN032500,1065,
DFID,CSC,27/04/2018,Scholar Stipend,Award Costs,Scholar,PIN032501,2130,
DFID,CSC,27/04/2018,Scholar Stipend,Award Costs,Scholar,PIN032503,3254,
DFID,CSC,27/04/2018,Scholar Stipend,Award Costs,Scholar,PIN032504,3254,
DFID,CSC,27/04/2018,Scholar Stipend,Award Costs,Scholar,PIN032505,1065,
DFID,CSC,27/04/2018,Scholar Stipend,Award Costs,Scholar,PIN032506,2130,
DFID,CSC,27/04/2018,Scholar Stipend,Award Costs,Scholar,PIN032507,2130,
DFID,CSC,27/04/2018,Scholar Stipend,Award Costs,Scholar,PIN032508,2130,
DFID,CSC,27/04/2018,Scholar Stipend,Award Costs,Scholar,PIN032509,2130,
DFID,CSC,27/04/2018,Scholar Stipend,Award Costs,Scholar,PIN032510,2130,
DFID,CSC,27/04/2018,Scholar Stipend,Award Costs,Scholar,PIN032511,2130,
DFID,CSC,27/04/2018,Scholar Stipend,Award Costs,Scholar,PIN032512,2130,
DFID,CSC,27/04/2018,Scholar Stipend,Award Costs,Scholar,PIN032513,2612,
DFID,CSC,27/04/2018,Scholar Stipend,Award Costs,Scholar,PIN032514,2130,
DFID,CSC,27/04/2018,Scholar Stipend,Award Costs,Scholar,PIN032515,2130,
DFID,CSC,27/04/2018,Scholar Stipend,Award Costs,Scholar,PIN032516,2130,
DFID,CSC,27/04/2018,Scholar Stipend,Award Costs,Scholar,PIN032517,2130,
DFID,CSC,27/04/2018,Scholar Stipend,Award Costs,Scholar,PIN032518,2612,
DFID,CSC,27/04/2018,Scholar Stipend,Award Costs,Scholar,PIN032519,2130,
DFID,CSC,27/04/2018,Scholar Stipend,Award Costs,Scholar,PIN032520,2130,
DFID,CSC,27/04/2018,Scholar Stipend,Award Costs,Scholar,PIN032521,2130,
DFID,CSC,27/04/2018,Scholar Stipend,Award Costs,Scholar,PIN032522,2130,
DFID,CSC,27/04/2018,Scholar Stipend,Award Costs,Scholar,PIN032523,2612,
DFID,CSC,27/04/2018,Scholar Stipend,Award Costs,Scholar,PIN032524,2612,
DFID,CSC,27/04/2018,Scholar Stipend,Award Costs,Scholar,PIN032525,2130,
DFID,CSC,27/04/2018,Scholar Stipend,Award Costs,Scholar,PIN032526,2130,
DFID,CSC,27/04/2018,Scholar Stipend,Award Costs,Scholar,PIN032527,2130,
DFID,CSC,27/04/2018,Scholar Stipend,Award Costs,Scholar,PIN032528,2130,
DFID,CSC,27/04/2018,Scholar Stipend,Award Costs,Scholar,PIN032529,2130,
DFID,CSC,27/04/2018,Scholar Stipend,Award Costs,Scholar,PIN032530,2130,
DFID,CSC,27/04/2018,Scholar Stipend,Award Costs,Scholar,PIN032531,1065,
DFID,CSC,27/04/2018,Scholar Stipend,Award Costs,Scholar,PIN032532,532.5,
DFID,CSC,27/04/2018,Scholar Stipend,Award Costs,Scholar,PIN032533,2130,
DFID,CSC,27/04/2018,Scholar Stipend,Award Costs,Scholar,PIN032534,2130,
DFID,CSC,27/04/2018,Scholar Stipend,Award Costs,Scholar,PIN032535,2130,
DFID,CSC,27/04/2018,Scholar Stipend,Award Costs,Scholar,PIN032536,2130,
DFID,CSC,27/04/2018,Scholar Stipend,Award Costs,Scholar,PIN032537,2130,
DFID,CSC,27/04/2018,Scholar Stipend,Award Costs,Scholar,PIN032538,2130,
DFID,CSC,27/04/2018,Scholar Stipend,Award Costs,Scholar,PIN032539,2130,
DFID,CSC,27/04/2018,Scholar Stipend,Award Costs,Scholar,PIN032540,2130,
DFID,CSC,27/04/2018,Scholar Stipend,Award Costs,Scholar,PIN032541,2130,
DFID,CSC,27/04/2018,Scholar Stipend,Award Costs,Scholar,PIN032542,2612,
DFID,CSC,27/04/2018,Scholar Stipend,Award Costs,Scholar,PIN032543,2130,
DFID,CSC,27/04/2018,Scholar Stipend,Award Costs,Scholar,PIN032544,2130,
DFID,CSC,27/04/2018,Scholar Stipend,Award Costs,Scholar,PIN032545,2612,
DFID,CSC,27/04/2018,Scholar Stipend,Award Costs,Scholar,PIN032546,2130,
DFID,CSC,27/04/2018,Scholar Stipend,Award Costs,Scholar,PIN032547,2130,
DFID,CSC,27/04/2018,Scholar Stipend,Award Costs,Scholar,PIN032548,2130,
DFID,CSC,27/04/2018,Scholar Stipend,Award Costs,Scholar,PIN032549,2612,
DFID,CSC,27/04/2018,Scholar Stipend,Award Costs,Scholar,PIN032550,2612,
DFID,CSC,27/04/2018,Scholar Stipend,Award Costs,Scholar,PIN032551,2612,
DFID,CSC,27/04/2018,Scholar Stipend,Award Costs,Scholar,PIN032552,2612,
DFID,CSC,27/04/2018,Scholar Stipend,Award Costs,Scholar,PIN032553,2130,
DFID,CSC,27/04/2018,Scholar Stipend,Award Costs,Scholar,PIN032554,2612,
DFID,CSC,27/04/2018,Scholar Stipend,Award Costs,Scholar,PIN032555,2612,
DFID,CSC,27/04/2018,Scholar Stipend,Award Costs,Scholar,PIN032556,2612,
DFID,CSC,27/04/2018,Scholar Stipend,Award Costs,Scholar,PIN032557,2130,
DFID,CSC,27/04/2018,Scholar Stipend,Award Costs,Scholar,PIN032558,2130,
DFID,CSC,27/04/2018,Scholar Stipend,Award Costs,Scholar,PIN032559,2130,
DFID,CSC,27/04/2018,Scholar Stipend,Award Costs,Scholar,PIN032560,2130,
DFID,CSC,27/04/2018,Scholar Stipend,Award Costs,Scholar,PIN032561,2612,
DFID,CSC,27/04/2018,Scholar Stipend,Award Costs,Scholar,PIN032562,2130,
DFID,CSC,27/04/2018,Scholar Stipend,Award Costs,Scholar,PIN032563,2130,
DFID,CSC,27/04/2018,Scholar Stipend,Award Costs,Scholar,PIN032564,2130,
DFID,CSC,27/04/2018,Scholar Stipend,Award Costs,Scholar,PIN032565,2130,
DFID,CSC,27/04/2018,Scholar Stipend,Award Costs,Scholar,PIN032566,2130,
DFID,CSC,27/04/2018,Scholar Stipend,Award Costs,Scholar,PIN032567,2130,
DFID,CSC,27/04/2018,Scholar Stipend,Award Costs,Scholar,PIN032568,549.99,
DFID,CSC,27/04/2018,Scholar Stipend,Award Costs,Scholar,PIN032569,2130,
DFID,CSC,27/04/2018,Scholar Stipend,Award Costs,Scholar,PIN032570,2130,
DFID,CSC,27/04/2018,Scholar Stipend,Award Costs,Scholar,PIN032571,2130,
DFID,CSC,27/04/2018,Scholar Stipend,Award Costs,Scholar,PIN032572,2130,
DFID,CSC,27/04/2018,Scholar Stipend,Award Costs,Scholar,PIN032573,2612,
DFID,CSC,27/04/2018,Scholar Stipend,Award Costs,Scholar,PIN032574,2130,
DFID,CSC,27/04/2018,Scholar Stipend,Award Costs,Scholar,PIN032575,2130,
DFID,CSC,27/04/2018,Scholar Stipend,Award Costs,Scholar,PIN032576,2130,
DFID,CSC,27/04/2018,Scholar Stipend,Award Costs,Scholar,PIN032577,670.08,
DFID,CSC,27/04/2018,Scholar Stipend,Award Costs,Scholar,PIN032578,2612,
DFID,CSC,27/04/2018,Scholar Stipend,Award Costs,Scholar,PIN032579,2130,
DFID,CSC,27/04/2018,Scholar Stipend,Award Costs,Scholar,PIN032580,2130,
DFID,CSC,27/04/2018,Scholar Stipend,Award Costs,Scholar,PIN032581,2130,
DFID,CSC,27/04/2018,Scholar Stipend,Award Costs,Scholar,PIN032582,2130,
DFID,CSC,27/04/2018,Scholar Stipend,Award Costs,Scholar,PIN032583,2130,
DFID,CSC,27/04/2018,Scholar Stipend,Award Costs,Scholar,PIN032584,2130,
DFID,CSC,27/04/2018,Scholar Stipend,Award Costs,Scholar,PIN032585,2130,
DFID,CSC,27/04/2018,Scholar Stipend,Award Costs,Scholar,PIN032586,2130,
DFID,CSC,27/04/2018,Scholar Stipend,Award Costs,Scholar,PIN032587,2612,
DFID,CSC,27/04/2018,Scholar Stipend,Award Costs,Scholar,PIN032588,2130,
DFID,CSC,27/04/2018,Scholar Stipend,Award Costs,Scholar,PIN032589,2130,
DFID,CSC,27/04/2018,Scholar Stipend,Award Costs,Scholar,PIN032590,1834.77,
DFID,CSC,27/04/2018,Scholar Stipend,Award Costs,Scholar,PIN032591,2130,
DFID,CSC,27/04/2018,Scholar Stipend,Award Costs,Scholar,PIN032592,2612,
DFID,CSC,27/04/2018,Scholar Stipend,Award Costs,Scholar,PIN032593,2130,
DFID,CSC,27/04/2018,Scholar Stipend,Award Costs,Scholar,PIN032594,2612,
DFID,CSC,27/04/2018,Scholar Stipend,Award Costs,Scholar,PIN032595,2130,
DFID,CSC,27/04/2018,Scholar Stipend,Award Costs,Scholar,PIN032596,2612,
DFID,CSC,27/04/2018,Scholar Stipend,Award Costs,Scholar,PIN032597,2130,
DFID,CSC,27/04/2018,Scholar Stipend,Award Costs,Scholar,PIN032598,2130,
DFID,CSC,27/04/2018,Scholar Stipend,Award Costs,Scholar,PIN032599,2130,
DFID,CSC,27/04/2018,Scholar Stipend,Award Costs,Scholar,PIN032600,2130,
DFID,CSC,27/04/2018,Scholar Stipend,Award Costs,Scholar,PIN032601,2612,
DFID,CSC,27/04/2018,Scholar Stipend,Award Costs,Scholar,PIN032602,2130,
DFID,CSC,27/04/2018,Scholar Stipend,Award Costs,Scholar,PIN032603,2130,
DFID,CSC,27/04/2018,Scholar Stipend,Award Costs,Scholar,PIN032604,2130,
DFID,CSC,27/04/2018,Scholar Stipend,Award Costs,Scholar,PIN032605,2130,
DFID,CSC,27/04/2018,Scholar Stipend,Award Costs,Scholar,PIN032606,2130,
DFID,CSC,27/04/2018,Scholar Stipend,Award Costs,Scholar,PIN032607,2130,
DFID,CSC,27/04/2018,Scholar Stipend,Award Costs,Scholar,PIN032608,2130,
DFID,CSC,27/04/2018,Scholar Stipend,Award Costs,Scholar,PIN032609,2612,
DFID,CSC,27/04/2018,Scholar Stipend,Award Costs,Scholar,PIN032610,2130,
DFID,CSC,27/04/2018,Scholar Stipend,Award Costs,Scholar,PIN032611,2130,
DFID,CSC,27/04/2018,Scholar Stipend,Award Costs,Scholar,PIN032612,2130,
DFID,CSC,27/04/2018,Scholar Stipend,Award Costs,Scholar,PIN032613,1869.76,
DFID,CSC,27/04/2018,Scholar Stipend,Award Costs,Scholar,PIN032614,2130,
DFID,CSC,27/04/2018,Scholar Stipend,Award Costs,Scholar,PIN032615,2130,
DFID,CSC,27/04/2018,Scholar Stipend,Award Costs,Scholar,PIN032616,1065,
DFID,CSC,27/04/2018,Scholar Stipend,Award Costs,Scholar,PIN032617,2130,
DFID,CSC,27/04/2018,Scholar Stipend,Award Costs,Scholar,PIN032618,2130,
DFID,CSC,27/04/2018,Scholar Stipend,Award Costs,Scholar,PIN032619,2130,
DFID,CSC,27/04/2018,Scholar Stipend,Award Costs,Scholar,PIN032620,781.72,
DFID,CSC,27/04/2018,Scholar Stipend,Award Costs,Scholar,PIN032621,2130,
DFID,CSC,27/04/2018,Scholar Stipend,Award Costs,Scholar,PIN032622,2130,
DFID,CSC,27/04/2018,Scholar Stipend,Award Costs,Scholar,PIN032623,2130,
DFID,CSC,27/04/2018,Scholar Stipend,Award Costs,Scholar,PIN032624,2130,
DFID,CSC,27/04/2018,Scholar Stipend,Award Costs,Scholar,PIN032625,2130,
DFID,CSC,27/04/2018,Scholar Stipend,Award Costs,Scholar,PIN032626,2130,
DFID,CSC,27/04/2018,Scholar Stipend,Award Costs,Scholar,PIN032627,554.78,
DFID,CSC,27/04/2018,Scholar Stipend,Award Costs,Scholar,PIN032628,2612,
DFID,CSC,27/04/2018,Scholar Stipend,Award Costs,Scholar,PIN032629,2130,
DFID,CSC,27/04/2018,Scholar Stipend,Award Costs,Scholar,PIN032630,2612,
DFID,CSC,27/04/2018,Scholar Stipend,Award Costs,Scholar,PIN032631,2130,
DFID,CSC,27/04/2018,Scholar Stipend,Award Costs,Scholar,PIN032632,2130,
DFID,CSC,27/04/2018,Scholar Stipend,Award Costs,Scholar,PIN032633,2612,
DFID,CSC,27/04/2018,Scholar Stipend,Award Costs,Scholar,PIN032634,2130,
DFID,CSC,27/04/2018,Scholar Stipend,Award Costs,Scholar,PIN032635,2130,
DFID,CSC,27/04/2018,Scholar Stipend,Award Costs,Scholar,PIN032636,2130,
DFID,CSC,27/04/2018,Scholar Stipend,Award Costs,Scholar,PIN032637,2612,
DFID,CSC,27/04/2018,Scholar Stipend,Award Costs,Scholar,PIN032638,2130,
DFID,CSC,27/04/2018,Scholar Stipend,Award Costs,Scholar,PIN032639,2130,
DFID,CSC,27/04/2018,Scholar Stipend,Award Costs,Scholar,PIN032640,2130,
DFID,CSC,27/04/2018,Scholar Stipend,Award Costs,Scholar,PIN032641,2612,
DFID,CSC,27/04/2018,Scholar Stipend,Award Costs,Scholar,PIN032642,2612,
DFID,CSC,27/04/2018,Scholar Stipend,Award Costs,Scholar,PIN032643,2130,
DFID,CSC,27/04/2018,Scholar Stipend,Award Costs,Scholar,PIN032644,1065,
DFID,CSC,27/04/2018,Scholar Stipend,Award Costs,Scholar,PIN032645,2130,
DFID,CSC,27/04/2018,Scholar Stipend,Award Costs,Scholar,PIN032646,2130,
DFID,CSC,27/04/2018,Scholar Stipend,Award Costs,Scholar,PIN032647,2130,
DFID,CSC,27/04/2018,Scholar Stipend,Award Costs,Scholar,PIN032648,2612,
DFID,CSC,27/04/2018,Scholar Stipend,Award Costs,Scholar,PIN032649,2130,
DFID,CSC,27/04/2018,Scholar Stipend,Award Costs,Scholar,PIN032650,2130,
DFID,CSC,27/04/2018,Scholar Stipend,Award Costs,Scholar,PIN032651,2130,
DFID,CSC,27/04/2018,Scholar Stipend,Award Costs,Scholar,PIN032652,2130,
DFID,CSC,27/04/2018,Scholar Stipend,Award Costs,Scholar,PIN032653,2612,
DFID,CSC,27/04/2018,Scholar Stipend,Award Costs,Scholar,PIN032654,2130,
DFID,CSC,27/04/2018,Scholar Stipend,Award Costs,Scholar,PIN032655,2130,
DFID,CSC,27/04/2018,Scholar Stipend,Award Costs,Scholar,PIN032657,2130,
DFID,CSC,27/04/2018,Scholar Stipend,Award Costs,Scholar,PIN032658,2612,
DFID,CSC,27/04/2018,Scholar Stipend,Award Costs,Scholar,PIN032659,2130,
DFID,CSC,27/04/2018,Scholar Stipend,Award Costs,Scholar,PIN032660,2130,
DFID,CSC,27/04/2018,Scholar Stipend,Award Costs,Scholar,PIN032661,2130,
DFID,CSC,27/04/2018,Scholar Stipend,Award Costs,Scholar,PIN032662,2130,
DFID,CSC,27/04/2018,Scholar Stipend,Award Costs,Scholar,PIN032663,2130,
DFID,CSC,27/04/2018,Scholar Stipend,Award Costs,Scholar,PIN032664,2130,
DFID,CSC,27/04/2018,Scholar Stipend,Award Costs,Scholar,PIN032665,2130,
DFID,CSC,27/04/2018,Scholar Stipend,Award Costs,Scholar,PIN032666,2130,
DFID,CSC,27/04/2018,Scholar Stipend,Award Costs,Scholar,PIN032667,2130,
DFID,CSC,27/04/2018,Scholar Stipend,Award Costs,Scholar,PIN032668,2130,
DFID,CSC,27/04/2018,Scholar Stipend,Award Costs,Scholar,PIN032669,3254,
DFID,CSC,27/04/2018,Scholar Stipend,Award Costs,Scholar,PIN032670,4038,
DFID,CSC,27/04/2018,Scholar Stipend,Award Costs,Scholar,PIN032671,3254,
DFID,CSC,27/04/2018,Scholar Stipend,Award Costs,Scholar,PIN032672,3254,
DFID,CSC,27/04/2018,Scholar Stipend,Award Costs,Scholar,PIN032673,3254,
DFID,CSC,27/04/2018,Scholar Stipend,Award Costs,Scholar,PIN032674,2019,
DFID,CSC,27/04/2018,Scholar Stipend,Award Costs,Scholar,PIN032675,928.66,
DFID,CSC,27/04/2018,Scholar Stipend,Award Costs,Scholar,PIN032676,2130,
DFID,CSC,27/04/2018,Scholar Stipend,Award Costs,Scholar,PIN032677,2130,
DFID,CSC,27/04/2018,Scholar Stipend,Award Costs,Scholar,PIN032678,2130,
DFID,CSC,27/04/2018,Scholar Stipend,Award Costs,Scholar,PIN032679,2130,
DFID,CSC,27/04/2018,Scholar Stipend,Award Costs,Scholar,PIN032680,2130,
DFID,CSC,27/04/2018,Scholar Stipend,Award Costs,Scholar,PIN032681,1065,
DFID,CSC,27/04/2018,Scholar Stipend,Award Costs,Scholar,PIN032683,1065,
DFID,CSC,27/04/2018,Scholar Stipend,Award Costs,Scholar,PIN032684,507.35,
DFID,CSC,27/04/2018,Scholar Stipend,Award Costs,Scholar,PIN032685,532.5,
DFID,CSC,27/04/2018,Scholar Stipend,Award Costs,Scholar,PIN032686,2130,
DFID,CSC,27/04/2018,Scholar Stipend,Award Costs,Scholar,PIN032687,2130,
DFID,CSC,27/04/2018,Scholar Stipend,Award Costs,Scholar,PIN032688,2130,
DFID,CSC,27/04/2018,Scholar Stipend,Award Costs,Scholar,PIN032689,2130,
DFID,CSC,27/04/2018,Scholar Stipend,Award Costs,Scholar,PIN032690,2130,
DFID,CSC,27/04/2018,Scholar Stipend,Award Costs,Scholar,PIN032691,2130,
DFID,CSC,27/04/2018,Scholar Stipend,Award Costs,Scholar,PIN032692,2612,
DFID,CSC,27/04/2018,Scholar Stipend,Award Costs,Scholar,PIN032693,2130,
DFID,CSC,27/04/2018,Scholar Stipend,Award Costs,Scholar,PIN032694,2130,
DFID,CSC,27/04/2018,Scholar Stipend,Award Costs,Scholar,PIN032695,2130,
DFID,CSC,27/04/2018,Scholar Stipend,Award Costs,Scholar,PIN032696,2130,
DFID,CSC,27/04/2018,Scholar Stipend,Award Costs,Scholar,PIN032697,2130,
DFID,CSC,27/04/2018,Scholar Stipend,Award Costs,Scholar,PIN032698,2130,
DFID,CSC,27/04/2018,Scholar Stipend,Award Costs,Scholar,PIN032699,2130,
DFID,CSC,27/04/2018,Scholar Stipend,Award Costs,Scholar,PIN032700,2130,
DFID,CSC,27/04/2018,Scholar Stipend,Award Costs,Scholar,PIN032701,2130,
DFID,CSC,27/04/2018,Scholar Stipend,Award Costs,Scholar,PIN032702,2130,
DFID,CSC,27/04/2018,Scholar Stipend,Award Costs,Scholar,PIN032703,2130,
DFID,CSC,27/04/2018,Scholar Stipend,Award Costs,Scholar,PIN032704,2612,
DFID,CSC,27/04/2018,Scholar Stipend,Award Costs,Scholar,PIN032705,2130,
DFID,CSC,27/04/2018,Scholar Stipend,Award Costs,Scholar,PIN032706,2130,
DFID,CSC,27/04/2018,Scholar Stipend,Award Costs,Scholar,PIN032707,2130,
DFID,CSC,27/04/2018,Scholar Stipend,Award Costs,Scholar,PIN032708,2612,
DFID,CSC,27/04/2018,Scholar Stipend,Award Costs,Scholar,PIN032709,2130,
DFID,CSC,27/04/2018,Scholar Stipend,Award Costs,Scholar,PIN032710,2612,
DFID,CSC,27/04/2018,Scholar Stipend,Award Costs,Scholar,PIN032711,2130,
DFID,CSC,27/04/2018,Scholar Stipend,Award Costs,Scholar,PIN032712,2130,
DFID,CSC,27/04/2018,Scholar Stipend,Award Costs,Scholar,PIN032713,2130,
DFID,CSC,27/04/2018,Scholar Stipend,Award Costs,Scholar,PIN032714,2130,
DFID,CSC,27/04/2018,Scholar Stipend,Award Costs,Scholar,PIN032715,2130,
DFID,CSC,27/04/2018,Scholar Stipend,Award Costs,Scholar,PIN032716,2130,
DFID,CSC,27/04/2018,Scholar Stipend,Award Costs,Scholar,PIN032717,2130,
DFID,CSC,27/04/2018,Scholar Stipend,Award Costs,Scholar,PIN032718,3254,
DFID,CSC,27/04/2018,Scholar Stipend,Award Costs,Scholar,PIN032719,2130,
DFID,CSC,27/04/2018,Scholar Stipend,Award Costs,Scholar,PIN032720,2130,
DFID,CSC,27/04/2018,Scholar Stipend,Award Costs,Scholar,PIN032721,2130,
DFID,CSC,27/04/2018,Scholar Stipend,Award Costs,Scholar,PIN032722,2130,
DFID,CSC,27/04/2018,Scholar Stipend,Award Costs,Scholar,PIN032723,2130,
DFID,CSC,27/04/2018,Scholar Stipend,Award Costs,Scholar,PIN032724,2612,
DFID,CSC,27/04/2018,Scholar Stipend,Award Costs,Scholar,PIN032725,2612,
DFID,CSC,27/04/2018,Scholar Stipend,Award Costs,Scholar,PIN032726,2130,
DFID,CSC,27/04/2018,Scholar Stipend,Award Costs,Scholar,PIN032727,2130,
DFID,CSC,27/04/2018,Scholar Stipend,Award Costs,Scholar,PIN032728,2130,
DFID,CSC,27/04/2018,Scholar Stipend,Award Costs,Scholar,PIN032729,2130,
DFID,CSC,27/04/2018,Scholar Stipend,Award Costs,Scholar,PIN032730,2130,
DFID,CSC,27/04/2018,Scholar Stipend,Award Costs,Scholar,PIN032731,2130,
DFID,CSC,27/04/2018,Scholar Stipend,Award Costs,Scholar,PIN032732,2612,
DFID,CSC,27/04/2018,Scholar Stipend,Award Costs,Scholar,PIN032733,2130,
DFID,CSC,27/04/2018,Scholar Stipend,Award Costs,Scholar,PIN032734,2130,
DFID,CSC,27/04/2018,Scholar Stipend,Award Costs,Scholar,PIN032735,2130,
DFID,CSC,27/04/2018,Scholar Stipend,Award Costs,Scholar,PIN032736,2130,
DFID,CSC,27/04/2018,Scholar Stipend,Award Costs,Scholar,PIN032737,2612,
DFID,CSC,27/04/2018,Scholar Stipend,Award Costs,Scholar,PIN032738,2130,
DFID,CSC,27/04/2018,Scholar Stipend,Award Costs,Scholar,PIN032739,2130,
DFID,CSC,27/04/2018,Scholar Stipend,Award Costs,Scholar,PIN032740,2130,
DFID,CSC,27/04/2018,Scholar Stipend,Award Costs,Scholar,PIN032741,2130,
DFID,CSC,27/04/2018,Scholar Stipend,Award Costs,Scholar,PIN032742,2130,
DFID,CSC,27/04/2018,Scholar Stipend,Award Costs,Scholar,PIN032743,2130,
DFID,CSC,27/04/2018,Scholar Stipend,Award Costs,Scholar,PIN032744,2612,
DFID,CSC,27/04/2018,Scholar Stipend,Award Costs,Scholar,PIN032745,2612,
DFID,CSC,27/04/2018,Scholar Stipend,Award Costs,Scholar,PIN032746,2130,
DFID,CSC,27/04/2018,Scholar Stipend,Award Costs,Scholar,PIN032747,2130,
DFID,CSC,27/04/2018,Scholar Stipend,Award Costs,Scholar,PIN032748,2612,
DFID,CSC,27/04/2018,Scholar Stipend,Award Costs,Scholar,PIN032749,2130,
DFID,CSC,27/04/2018,Scholar Stipend,Award Costs,Scholar,PIN032750,2130,
DFID,CSC,27/04/2018,Scholar Stipend,Award Costs,Scholar,PIN032751,2130,
DFID,CSC,27/04/2018,Scholar Stipend,Award Costs,Scholar,PIN032752,2130,
DFID,CSC,27/04/2018,Scholar Stipend,Award Costs,Scholar,PIN032754,2130,
DFID,CSC,27/04/2018,Scholar Stipend,Award Costs,Scholar,PIN032755,2130,
DFID,CSC,27/04/2018,Scholar Stipend,Award Costs,Scholar,PIN032756,2130,
DFID,CSC,27/04/2018,Scholar Stipend,Award Costs,Scholar,PIN032757,2130,
DFID,CSC,27/04/2018,Scholar Stipend,Award Costs,Scholar,PIN032758,1990.04,
DFID,CSC,27/04/2018,Scholar Stipend,Award Costs,Scholar,PIN032759,2130,
DFID,CSC,27/04/2018,Scholar Stipend,Award Costs,Scholar,PIN032760,1065,
DFID,CSC,27/04/2018,Scholar Stipend,Award Costs,Scholar,PIN032761,2130,
DFID,CSC,27/04/2018,Scholar Stipend,Award Costs,Scholar,PIN032762,2130,
DFID,CSC,27/04/2018,Scholar Stipend,Award Costs,Scholar,PIN032763,2130,
DFID,CSC,27/04/2018,Scholar Stipend,Award Costs,Scholar,PIN032764,2130,
DFID,CSC,27/04/2018,Scholar Stipend,Award Costs,Scholar,PIN032765,2130,
DFID,CSC,27/04/2018,Scholar Stipend,Award Costs,Scholar,PIN032766,2130,
DFID,CSC,27/04/2018,Scholar Stipend,Award Costs,Scholar,PIN032767,2130,
DFID,CSC,27/04/2018,Scholar Stipend,Award Costs,Scholar,PIN032768,2130,
DFID,CSC,27/04/2018,Scholar Stipend,Award Costs,Scholar,PIN032769,2612,
DFID,CSC,27/04/2018,Scholar Stipend,Award Costs,Scholar,PIN032770,2130,
DFID,CSC,27/04/2018,Scholar Stipend,Award Costs,Scholar,PIN032771,2130,
DFID,CSC,27/04/2018,Scholar Stipend,Award Costs,Scholar,PIN032772,2130,
DFID,CSC,27/04/2018,Scholar Stipend,Award Costs,Scholar,PIN032773,2130,
DFID,CSC,27/04/2018,Scholar Stipend,Award Costs,Scholar,PIN032774,532.5,
DFID,CSC,27/04/2018,Scholar Stipend,Award Costs,Scholar,PIN032775,2130,
DFID,CSC,27/04/2018,Scholar Stipend,Award Costs,Scholar,PIN032776,2130,
DFID,CSC,27/04/2018,Scholar Stipend,Award Costs,Scholar,PIN032777,2130,
DFID,CSC,27/04/2018,Scholar Stipend,Award Costs,Scholar,PIN032778,2130,
DFID,CSC,27/04/2018,Scholar Stipend,Award Costs,Scholar,PIN032779,2130,
DFID,CSC,27/04/2018,Scholar Stipend,Award Costs,Scholar,PIN032780,3254,
DFID,CSC,27/04/2018,Scholar Stipend,Award Costs,Scholar,PIN032781,2130,
DFID,CSC,27/04/2018,Scholar Stipend,Award Costs,Scholar,PIN032782,2130,
DFID,CSC,27/04/2018,Scholar Stipend,Award Costs,Scholar,PIN032783,2130,
DFID,CSC,27/04/2018,Scholar Stipend,Award Costs,Scholar,PIN032784,2130,
DFID,CSC,27/04/2018,Scholar Stipend,Award Costs,Scholar,PIN032785,2130,
DFID,CSC,27/04/2018,Scholar Stipend,Award Costs,Scholar,PIN032786,2612,
DFID,CSC,27/04/2018,Scholar Stipend,Award Costs,Scholar,PIN032787,2130,
DFID,CSC,27/04/2018,Scholar Stipend,Award Costs,Scholar,PIN032788,2130,
DFID,CSC,27/04/2018,Scholar Stipend,Award Costs,Scholar,PIN032789,2612,
DFID,CSC,27/04/2018,Scholar Stipend,Award Costs,Scholar,PIN032790,2130,
DFID,CSC,27/04/2018,Scholar Stipend,Award Costs,Scholar,PIN032791,2612,
DFID,CSC,27/04/2018,Scholar Stipend,Award Costs,Scholar,PIN032792,2130,
DFID,CSC,27/04/2018,Scholar Stipend,Award Costs,Scholar,PIN032793,2612,
DFID,CSC,27/04/2018,Scholar Stipend,Award Costs,Scholar,PIN032794,2130,
DFID,CSC,27/04/2018,Scholar Stipend,Award Costs,Scholar,PIN032795,2612,
DFID,CSC,27/04/2018,Scholar Stipend,Award Costs,Scholar,PIN032796,2130,
DFID,CSC,27/04/2018,Scholar Stipend,Award Costs,Scholar,PIN032797,2612,
DFID,CSC,27/04/2018,Scholar Stipend,Award Costs,Scholar,PIN032798,2130,
DFID,CSC,27/04/2018,Scholar Stipend,Award Costs,Scholar,PIN032799,2130,
DFID,CSC,27/04/2018,Scholar Stipend,Award Costs,Scholar,PIN032800,2130,
DFID,CSC,27/04/2018,Scholar Stipend,Award Costs,Scholar,PIN032801,2130,
DFID,CSC,27/04/2018,Scholar Stipend,Award Costs,Scholar,PIN032802,2130,
DFID,CSC,27/04/2018,Scholar Stipend,Award Costs,Scholar,PIN032803,1065,
DFID,CSC,27/04/2018,Scholar Stipend,Award Costs,Scholar,PIN032804,864.9,
DFID,CSC,27/04/2018,Scholar Stipend,Award Costs,Scholar,PIN032805,2130,
DFID,CSC,27/04/2018,Scholar Stipend,Award Costs,Scholar,PIN032806,2130,
DFID,CSC,27/04/2018,Scholar Stipend,Award Costs,Scholar,PIN032807,2130,
DFID,CSC,27/04/2018,Scholar Stipend,Award Costs,Scholar,PIN032808,2130,
DFID,CSC,27/04/2018,Scholar Stipend,Award Costs,Scholar,PIN032809,2130,
DFID,CSC,27/04/2018,Scholar Stipend,Award Costs,Scholar,PIN032810,2130,
DFID,CSC,27/04/2018,Scholar Stipend,Award Costs,Scholar,PIN032811,2130,
DFID,CSC,27/04/2018,Scholar Stipend,Award Costs,Scholar,PIN032812,2130,
DFID,CSC,27/04/2018,Scholar Stipend,Award Costs,Scholar,PIN032813,2130,
DFID,CSC,27/04/2018,Scholar Stipend,Award Costs,Scholar,PIN032814,2612,
DFID,CSC,27/04/2018,Scholar Stipend,Award Costs,Scholar,PIN032815,2541.11,
DFID,CSC,27/04/2018,Scholar Stipend,Award Costs,Scholar,PIN032816,2130,
DFID,CSC,27/04/2018,Scholar Stipend,Award Costs,Scholar,PIN032817,2130,
DFID,CSC,27/04/2018,Scholar Stipend,Award Costs,Scholar,PIN032818,2130,
DFID,CSC,27/04/2018,Scholar Stipend,Award Costs,Scholar,PIN032819,2130,
DFID,CSC,27/04/2018,Scholar Stipend,Award Costs,Scholar,PIN032820,2130,
DFID,CSC,27/04/2018,Scholar Stipend,Award Costs,Scholar,PIN032821,2130,
DFID,CSC,27/04/2018,Scholar Stipend,Award Costs,Scholar,PIN032822,2612,
DFID,CSC,27/04/2018,Scholar Stipend,Award Costs,Scholar,PIN032823,1659.82,
DFID,CSC,27/04/2018,Scholar Stipend,Award Costs,Scholar,PIN032824,2130,
DFID,CSC,27/04/2018,Scholar Stipend,Award Costs,Scholar,PIN032825,2612,
DFID,CSC,27/04/2018,Scholar Stipend,Award Costs,Scholar,PIN032826,2130,
DFID,CSC,27/04/2018,Scholar Stipend,Award Costs,Scholar,PIN032827,2130,
DFID,CSC,27/04/2018,Scholar Stipend,Award Costs,Scholar,PIN032828,2612,
DFID,CSC,27/04/2018,Scholar Stipend,Award Costs,Scholar,PIN032829,2130,
DFID,CSC,27/04/2018,Scholar Stipend,Award Costs,Scholar,PIN032830,2130,
DFID,CSC,27/04/2018,Scholar Stipend,Award Costs,Scholar,PIN032831,2612,
DFID,CSC,27/04/2018,Scholar Stipend,Award Costs,Scholar,PIN032832,2130,
DFID,CSC,27/04/2018,Scholar Stipend,Award Costs,Scholar,PIN032833,2130,
DFID,CSC,27/04/2018,Scholar Stipend,Award Costs,Scholar,PIN032834,2130,
DFID,CSC,27/04/2018,Scholar Stipend,Award Costs,Scholar,PIN032835,2612,
DFID,CSC,27/04/2018,Scholar Stipend,Award Costs,Scholar,PIN032836,2130,
DFID,CSC,27/04/2018,Scholar Stipend,Award Costs,Scholar,PIN032837,2130,
DFID,CSC,27/04/2018,Scholar Stipend,Award Costs,Scholar,PIN032838,2130,
DFID,CSC,27/04/2018,Scholar Stipend,Award Costs,Scholar,PIN032839,2130,
DFID,CSC,27/04/2018,Scholar Stipend,Award Costs,Scholar,PIN032840,2130,
DFID,CSC,27/04/2018,Scholar Stipend,Award Costs,Scholar,PIN032841,2612,
DFID,CSC,27/04/2018,Scholar Stipend,Award Costs,Scholar,PIN032842,2130,
DFID,CSC,27/04/2018,Scholar Stipend,Award Costs,Scholar,PIN032843,2130,
DFID,CSC,27/04/2018,Scholar Stipend,Award Costs,Scholar,PIN032844,2130,
DFID,CSC,27/04/2018,Scholar Stipend,Award Costs,Scholar,PIN032845,2130,
DFID,CSC,27/04/2018,Scholar Stipend,Award Costs,Scholar,PIN032846,2130,
DFID,CSC,27/04/2018,Scholar Stipend,Award Costs,Scholar,PIN032847,2130,
DFID,CSC,27/04/2018,Scholar Stipend,Award Costs,Scholar,PIN032848,2130,
DFID,CSC,27/04/2018,Scholar Stipend,Award Costs,Scholar,PIN032849,2130,
DFID,CSC,27/04/2018,Scholar Stipend,Award Costs,Scholar,PIN032850,2130,
DFID,CSC,27/04/2018,Scholar Stipend,Award Costs,Scholar,PIN032851,2130,
DFID,CSC,27/04/2018,Scholar Stipend,Award Costs,Scholar,PIN032852,2095.02,
DFID,CSC,27/04/2018,Scholar Stipend,Award Costs,Scholar,PIN032853,2612,
DFID,CSC,27/04/2018,Scholar Stipend,Award Costs,Scholar,PIN032854,2130,
DFID,CSC,27/04/2018,Scholar Stipend,Award Costs,Scholar,PIN032855,2130,
DFID,CSC,27/04/2018,Scholar Stipend,Award Costs,Scholar,PIN032856,2130,
DFID,CSC,27/04/2018,Scholar Stipend,Award Costs,Scholar,PIN032857,2130,
DFID,CSC,27/04/2018,Scholar Stipend,Award Costs,Scholar,PIN032858,2130,
DFID,CSC,27/04/2018,Scholar Stipend,Award Costs,Scholar,PIN032859,2612,
DFID,CSC,27/04/2018,Scholar Allowances,Award Costs,Scholar,PIN032868,682,
DFID,CSC,27/04/2018,Scholar Allowances,Award Costs,Scholar,PIN032870,682,
DFID,CSC,27/04/2018,Scholar Allowances,Award Costs,Scholar,PIN032872,682,
DFID,CSC,27/04/2018,Scholar Allowances,Award Costs,Scholar,PIN032874,682,
DFID,CSC,27/04/2018,Scholar Allowances,Award Costs,Scholar,PIN032880,682,
DFID,CSC,27/04/2018,Scholar Allowances,Award Costs,Scholar,PIN032885,1138,
DFID,CSC,27/04/2018,Scholar Allowances,Award Costs,Scholar,PIN032889,682,
DFID,CSC,27/04/2018,Scholar Allowances,Award Costs,Scholar,PIN032891,682,
DFID,CSC,27/04/2018,Scholar Allowances,Award Costs,Scholar,PIN032892,682,
DFID,CSC,27/04/2018,Scholar Allowances,Award Costs,Scholar,PIN032893,682,
DFID,CSC,27/04/2018,Scholar Allowances,Award Costs,Scholar,PIN032894,682,
DFID,CSC,27/04/2018,Scholar Allowances,Award Costs,Scholar,PIN032895,682,
DFID,CSC,27/04/2018,Scholar Allowances,Award Costs,Scholar,PIN032901,682,
DFID,CSC,27/04/2018,Scholar Allowances,Award Costs,Scholar,PIN032902,906,
DFID,CSC,27/04/2018,Scholar Allowances,Award Costs,Scholar,PIN032903,682,
DFID,CSC,27/04/2018,Scholar Allowances,Award Costs,Scholar,PIN032904,906,
DFID,CSC,27/04/2018,Scholar Allowances,Award Costs,Scholar,PIN032906,682,
DFID,CSC,27/04/2018,Scholar Allowances,Award Costs,Scholar,PIN032908,1374,
DFID,CSC,27/04/2018,Scholar Allowances,Award Costs,Scholar,PIN032911,906,
DFID,CSC,27/04/2018,Scholar Allowances,Award Costs,Scholar,PIN032912,906,
DFID,CSC,27/04/2018,Scholar Allowances,Award Costs,Scholar,PIN032913,914,
DFID,CSC,27/04/2018,Scholar Allowances,Award Costs,Scholar,PIN032914,906,
DFID,CSC,27/04/2018,Scholar Allowances,Award Costs,Scholar,PIN032916,682,
DFID,CSC,27/04/2018,Scholar Allowances,Award Costs,Scholar,PIN032917,914,
DFID,CSC,27/04/2018,Scholar Allowances,Award Costs,Scholar,PIN032918,682,
DFID,CSC,27/04/2018,Scholar Allowances,Award Costs,Scholar,PIN032920,682,
DFID,CSC,27/04/2018,Scholar Allowances,Award Costs,Scholar,PIN032927,906,
DFID,CSC,27/04/2018,Scholar Allowances,Award Costs,Scholar,PIN032928,906,
DFID,CSC,27/04/2018,Scholar Allowances,Award Costs,Scholar,PIN032930,906,
DFID,CSC,27/04/2018,Scholar Allowances,Award Costs,Scholar,PIN032931,682,
DFID,CSC,27/04/2018,Scholar Allowances,Award Costs,Scholar,PIN032933,682,
DFID,CSC,27/04/2018,Scholar Allowances,Award Costs,Scholar,PIN032934,682,
DFID,CSC,27/04/2018,Scholar Allowances,Award Costs,Scholar,PIN032935,682,
DFID,CSC,27/04/2018,Scholar Allowances,Award Costs,Scholar,PIN032936,914,
DFID,CSC,27/04/2018,Scholar Allowances,Award Costs,Scholar,PIN032939,906,
DFID,CSC,27/04/2018,Scholar Allowances,Award Costs,Scholar,PIN032941,906,
DFID,CSC,27/04/2018,Scholar Allowances,Award Costs,Scholar,PIN032943,1362,
DFID,CSC,27/04/2018,Scholar Allowances,Award Costs,Scholar,PIN032945,906,
DFID,CSC,27/04/2018,Scholar Allowances,Award Costs,Scholar,PIN032946,682,
DFID,CSC,27/04/2018,Scholar Allowances,Award Costs,Scholar,PIN032951,682,
DFID,CSC,27/04/2018,Scholar Allowances,Award Costs,Scholar,PIN032952,682,
DFID,CSC,27/04/2018,Scholar Allowances,Award Costs,Scholar,PIN032953,682,
DFID,CSC,27/04/2018,Scholar Engagement,Programme Costs,Safestay Limited,PIN033055,828,
DFID,CSC,27/04/2018,Tuition Fee,Award Costs,Sch Oriental & African Studies,PIN033056,12792,
DFID,CSC,27/04/2018,Tuition Fee,Award Costs,Sch Oriental & African Studies,PIN033057,14460,
DFID,CSC,27/04/2018,Tuition Fee,Award Costs,Sch Oriental & African Studies,PIN033058,15032,
DFID,CSC,27/04/2018,Tuition Fee,Award Costs,Sch Oriental & African Studies,PIN033059,12672,
DFID,CSC,27/04/2018,Tuition Fee,Award Costs,Sch Oriental & African Studies,PIN033060,8528,
DFID,CSC,27/04/2018,Scholar Allowances,Award Costs,University of Bedfordshire,PIN033066,575,
DFID,CSC,27/04/2018,Scholar Travel,Award Costs,University of Bedfordshire,PIN033066,809,
DFID,CSC,27/04/2018,Scholar Allowances,Award Costs,University of Bedfordshire,PIN033066,400,
DFID,CSC,27/04/2018,Scholar Allowances,Award Costs,University of Bedfordshire,PIN033066,450,
DFID,CSC,27/04/2018,Visa Costs,Award Costs,The University of Birmingham,PIN033067,71,
DFID,CSC,27/04/2018,Scholar Allowances,Award Costs,The University of Birmingham,PIN033067,414,
DFID,CSC,27/04/2018,Scholar Travel,Award Costs,The University of Birmingham,PIN033067,871,
DFID,CSC,27/04/2018,Scholar Allowances,Award Costs,The University of Birmingham,PIN033067,225,
DFID,CSC,27/04/2018,Scholar Allowances,Award Costs,The University of Birmingham,PIN033067,200,
DFID,CSC,27/04/2018,Scholar Allowances,Award Costs,The University of Birmingham,PIN033067,250,
DFID,CSC,27/04/2018,Scholar Travel,Award Costs,The University of Birmingham,PIN033067,636.83,
DFID,CSC,27/04/2018,Tuition Fee,Award Costs,Goldsmiths College,PIN033069,13824,
DFID,CSC,27/04/2018,Tuition Fee,Award Costs,Queen Mary University of London,PIN033070,11024,
DFID,CSC,27/04/2018,Tuition Fee,Award Costs,Queen Mary University of London,PIN033071,31600,Tuition fee for 1 scholar
DFID,CSC,23/04/2018,Bank Charges,Award Costs,MasterCard Prepaid Management Services Ltd,PIN033149,13.68,
BEIS,CSC,23/04/2018,Scholar Allowances,Award Costs,Scholar,PIN033149,1000,
BEIS,CSC,23/04/2018,Visa Costs,Award Costs,Scholar,PIN033149,184,
BEIS,CSC,23/04/2018,Visa Costs,Award Costs,Scholar,PIN033149,184,
DFID,CSC,30/04/2018,Bank Charges,Award Costs,MasterCard Prepaid Management Services Ltd,PIN033151,5.69,
BEIS,CSC,30/04/2018,Scholar Allowances,Award Costs,Scholar,PIN033151,569,
DFID,CSC,03/04/2018,Commission Meetings,Admin Costs,Commission Chair,PPI033152,2625,
BEIS,CSC,27/04/2018,Scholar Stipend,Award Costs,Scholar,PRF000057,-1789.36,
BEIS,CSC,24/04/2018,Scholar Stipend,Award Costs,Scholar,NOM000734,-1464.64,
DFID,CSC,30/04/2018,Postage & Courier,Programme Costs,DHL,NOM000735,1041.57,
DFID,CSC,30/04/2018,Postage & Courier,Programme Costs,DHL,NOM000735,194.64,
DFID,CSC,30/04/2018,Postage & Courier,Award Costs,DHL,NOM000735,31.61,
DFID,CSC,30/04/2018,Postage & Courier,Admin Costs,DHL,NOM000735,13.65,
DFID,CSC,05/04/2018,Software Support / Licences,Admin Costs,NatWest CC,NOM000740,2082.81,
